[Event "Early-Titled-Tuesday-Blitz-May-28-2024"]
[Site "Chess.com"]
[Date "2024.05.28"]
[Round "6"]
[White "FischerKasparow"]
[Black "HanSchut"]
[Result "0-1"]
[WhiteElo "2107"]
[BlackElo "2341"]
[TimeControl "180+1"]
[EndTime "9:06:22 PDT"]
[Termination "HanSchut won by checkmate"]

1. e4 {[%clk 0:03:00.9]} 1... c5 {[%clk 0:02:59.7]} 2. Nf3 {[%clk 0:03:00.1]}
2... d6 {[%clk 0:03:00]} 3. d4 {[%clk 0:02:59.9]} 3... cxd4 {[%clk 0:03:00.9]}
4. Nxd4 {[%clk 0:03:00.1]} 4... Nf6 {[%clk 0:03:01.8]} 5. Nc3 {[%clk 0:03:00]}
5... g6 {[%clk 0:03:02.3]} 6. Be3 {[%clk 0:02:58.8]} 6... Bg7 {[%clk 0:03:02.4]}
7. f3 {[%clk 0:02:59.1]} 7... O-O {[%clk 0:03:02.9]} 8. Qd2 {[%clk 0:02:59.1]}
8... Nc6 {[%clk 0:03:03]} 9. Bc4 {[%clk 0:02:58.9]} 9... Bd7 {[%clk 0:03:02.3]}
10. O-O-O {[%clk 0:02:58.8]} 10... Rc8 {[%clk 0:03:02.6]} 11. Bb3 {[%clk
0:02:58.4]} 11... Nxd4 {[%clk 0:03:03.3]} 12. Bxd4 {[%clk 0:02:57.8]} 12... b5
{[%clk 0:03:04.2]} 13. h4 {[%clk 0:02:54.7]} 13... a5 {[%clk 0:03:02.1]} 14. a4
{[%clk 0:02:52.8]} 14... bxa4 {[%clk 0:02:59.1]} 15. Nxa4 {[%clk 0:02:49.9]}
15... Bxa4 {[%clk 0:02:58.7]} 16. Bxa4 {[%clk 0:02:49.1]} 16... Rc4 {[%clk
0:02:58.8]} 17. Bb3 {[%clk 0:02:44.4]} 17... Nxe4 {[%clk 0:02:58.1]} 18. fxe4
{[%clk 0:02:39.4]} 18... Rxd4 {[%clk 0:02:56.5]} 19. Qe3 {[%clk 0:02:35.3]}
19... Qb6 {[%clk 0:02:31.1]} 20. Rxd4 {[%clk 0:02:31.4]} 20... Bxd4 {[%clk
0:02:30.3]} 21. Qd3 {[%clk 0:02:00.3]} 21... a4 {[%clk 0:02:28.4]} 22. Bc4
{[%clk 0:02:00.4]} 22... Qxb2+ {[%clk 0:02:22]} 23. Kd2 {[%clk 0:02:00.5]} 23...
Be5 {[%clk 0:01:44.8]} 24. h5 {[%clk 0:01:50.2]} 24... g5 {[%clk 0:01:43.3]} 25.
Rf1 {[%clk 0:01:45.5]} 25... e6 {[%clk 0:01:34.6]} 26. g3 {[%clk 0:01:39.2]}
26... Rc8 {[%clk 0:01:31.2]} 27. Qf3 {[%clk 0:01:36.4]} 27... Qb4+ {[%clk
0:01:16.2]} 28. Kd1 {[%clk 0:01:21]} 28... Qxc4 {[%clk 0:01:11.9]} 29. Qxf7+
{[%clk 0:01:20.6]} 29... Kh8 {[%clk 0:01:12.6]} 30. Rf2 {[%clk 0:01:19.2]} 30...
Qd4+ {[%clk 0:00:59.2]} 31. Ke2 {[%clk 0:01:14.4]} 31... Rxc2+ {[%clk
0:00:54.8]} 32. Kf1 {[%clk 0:01:14.5]} 32... Rxf2+ {[%clk 0:00:54.5]} 33. Qxf2
{[%clk 0:01:12.6]} 33... Qxf2+ {[%clk 0:00:55.4]} 34. Kxf2 {[%clk 0:01:12.9]}
34... a3 {[%clk 0:00:56.2]} 35. Ke3 {[%clk 0:01:12.3]} 35... a2 {[%clk
0:00:56.4]} 36. Kd3 {[%clk 0:01:13.2]} 36... a1=Q {[%clk 0:00:56.6]} 37. Kc4
{[%clk 0:01:14.1]} 37... Qd4+ {[%clk 0:00:56.7]} 38. Kb5 {[%clk 0:01:15]} 38...
Qxe4 {[%clk 0:00:56.9]} 39. g4 {[%clk 0:01:14.8]} 39... Qxg4 {[%clk 0:00:55.6]}
40. h6 {[%clk 0:01:15.1]} 40... Qd4 {[%clk 0:00:55.5]} 41. Kc6 {[%clk
0:01:14.7]} 41... g4 {[%clk 0:00:54.7]} 42. Kd7 {[%clk 0:01:13.4]} 42... Qa7+
{[%clk 0:00:52.2]} 43. Kxe6 {[%clk 0:01:12.8]} 43... g3 {[%clk 0:00:50.6]} 44.
Kf5 {[%clk 0:01:12.5]} 44... g2 {[%clk 0:00:50.5]} 45. Ke4 {[%clk 0:01:11.9]}
45... g1=Q {[%clk 0:00:49.5]} 46. Kf3 {[%clk 0:01:11.9]} 46... Qaf2+ {[%clk
0:00:44.1]} 47. Ke4 {[%clk 0:01:11.1]} 47... Qgg2+ {[%clk 0:00:39.9]} 48. Kd3
{[%clk 0:01:10]} 48... Qd4# {[%clk 0:00:38.5]} 0-1

[Event "Early-Titled-Tuesday-Blitz-May-28-2024"]
[Site "Chess.com"]
[Date "2024.05.28"]
[Round "6"]
[White "Pertinhez76"]
[Black "dianamirza"]
[Result "1-0"]
[WhiteElo "2263"]
[BlackElo "2006"]
[TimeControl "180+1"]
[EndTime "9:06:25 PDT"]
[Termination "Pertinhez76 won on time"]

1. d4 {[%clk 0:02:59.4]} 1... Nf6 {[%clk 0:02:46.7]} 2. Bf4 {[%clk 0:02:58.6]}
2... d6 {[%clk 0:02:34.9]} 3. Nc3 {[%clk 0:02:58.1]} 3... g6 {[%clk 0:02:34.2]}
4. e4 {[%clk 0:02:57.9]} 4... Bg7 {[%clk 0:02:33.9]} 5. Qd2 {[%clk 0:02:58]}
5... O-O {[%clk 0:02:34.4]} 6. O-O-O {[%clk 0:02:57.9]} 6... c5 {[%clk
0:02:26.1]} 7. Nge2 {[%clk 0:02:53.7]} 7... cxd4 {[%clk 0:02:25.9]} 8. Nxd4
{[%clk 0:02:53.8]} 8... Nc6 {[%clk 0:02:23.9]} 9. Nb3 {[%clk 0:02:53.9]} 9... a5
{[%clk 0:02:22.2]} 10. a4 {[%clk 0:02:52]} 10... Be6 {[%clk 0:02:09.8]} 11. Bb5
{[%clk 0:02:50.9]} 11... Bxb3 {[%clk 0:02:08.8]} 12. cxb3 {[%clk 0:02:51.1]}
12... Rc8 {[%clk 0:02:00.2]} 13. Kb1 {[%clk 0:02:50.9]} 13... Na7 {[%clk
0:01:56.6]} 14. f3 {[%clk 0:02:47.8]} 14... Nxb5 {[%clk 0:01:39.8]} 15. Nxb5
{[%clk 0:02:47.8]} 15... Re8 {[%clk 0:01:39.9]} 16. g4 {[%clk 0:02:44.3]} 16...
Nd7 {[%clk 0:01:38.7]} 17. h4 {[%clk 0:02:41.2]} 17... Ne5 {[%clk 0:01:37.3]}
18. Qe3 {[%clk 0:02:33.2]} 18... Rc6 {[%clk 0:01:17.8]} 19. h5 {[%clk
0:02:32.7]} 19... Qd7 {[%clk 0:01:02.6]} 20. Bh6 {[%clk 0:02:27.3]} 20... Bh8
{[%clk 0:00:31.7]} 21. hxg6 {[%clk 0:02:26.1]} 21... hxg6 {[%clk 0:00:29.1]} 22.
Rh2 {[%clk 0:02:24.5]} 22... f5 {[%clk 0:00:12.8]} 23. gxf5 {[%clk 0:02:21.2]}
23... gxf5 {[%clk 0:00:13.3]} 24. Rg1+ {[%clk 0:02:20]} 24... Kf7 {[%clk
0:00:13.5]} 25. Qf4 {[%clk 0:01:55.8]} 25... Ng6 {[%clk 0:00:11.6]} 26. Qxf5+
{[%clk 0:01:54.8]} 26... Qxf5 {[%clk 0:00:11.9]} 27. exf5 {[%clk 0:01:55.6]}
27... Ne5 {[%clk 0:00:11]} 28. Rh3 {[%clk 0:01:54]} 28... Rg8 {[%clk 0:00:10]}
29. Rxg8 {[%clk 0:01:53]} 29... Kxg8 {[%clk 0:00:10.9]} 30. Bd2 {[%clk
0:01:49.8]} 30... Kf7 {[%clk 0:00:10.8]} 31. Bxa5 {[%clk 0:01:49.8]} 31... Bf6
{[%clk 0:00:09.5]} 32. Bc3 {[%clk 0:01:49.3]} 32... Nd7 {[%clk 0:00:07.2]} 33.
Rh7+ {[%clk 0:01:42.7]} 33... Ke8 {[%clk 0:00:05.9]} 34. Bxf6 {[%clk 0:01:40.2]}
34... Nxf6 {[%clk 0:00:06.3]} 35. Rh8+ {[%clk 0:01:40.6]} 35... Kd7 {[%clk
0:00:06.9]} 36. Rb8 {[%clk 0:01:40.9]} 36... b6 {[%clk 0:00:05.4]} 37. Rb7+
{[%clk 0:01:34.5]} 37... Ke8 {[%clk 0:00:05]} 38. Nd4 {[%clk 0:01:33.9]} 38...
Rc5 {[%clk 0:00:01]} 39. Rxb6 {[%clk 0:01:33.5]} 39... Nd5 {[%clk 0:00:01]} 40.
Rb7 {[%clk 0:01:31]} 40... Ne3 {[%clk 0:00:01]} 41. f6 {[%clk 0:01:30]} 41...
exf6 {[%clk 0:00:01]} 42. Ne6 {[%clk 0:01:27.4]} 1-0

[Event "Early-Titled-Tuesday-Blitz-May-28-2024"]
[Site "Chess.com"]
[Date "2024.05.28"]
[Round "6"]
[White "Blitz_Lover1"]
[Black "jbking07"]
[Result "1-0"]
[WhiteElo "2545"]
[BlackElo "2378"]
[TimeControl "180+1"]
[EndTime "9:06:26 PDT"]
[Termination "Blitz_Lover1 won by resignation"]

1. e4 {[%clk 0:03:00.9]} 1... c5 {[%clk 0:03:00]} 2. Nf3 {[%clk 0:03:00.7]} 2...
d6 {[%clk 0:03:00.3]} 3. d4 {[%clk 0:03:01]} 3... cxd4 {[%clk 0:03:01.2]} 4.
Nxd4 {[%clk 0:03:00.8]} 4... Nf6 {[%clk 0:03:01.9]} 5. Nc3 {[%clk 0:03:01.2]}
5... Nc6 {[%clk 0:03:02.4]} 6. Bg5 {[%clk 0:02:59.6]} 6... e6 {[%clk 0:03:02.6]}
7. Qd2 {[%clk 0:02:57.8]} 7... a6 {[%clk 0:03:02.7]} 8. O-O-O {[%clk 0:02:58.3]}
8... Bd7 {[%clk 0:03:03]} 9. f4 {[%clk 0:02:58.7]} 9... b5 {[%clk 0:03:02.1]}
10. Bxf6 {[%clk 0:02:48.3]} 10... Qxf6 {[%clk 0:03:00.2]} 11. e5 {[%clk
0:02:44.9]} 11... dxe5 {[%clk 0:02:44.6]} 12. Ndxb5 {[%clk 0:02:43.6]} 12... Qd8
{[%clk 0:02:28.5]} 13. Nd6+ {[%clk 0:02:21.5]} 13... Bxd6 {[%clk 0:02:27.1]} 14.
Qxd6 {[%clk 0:02:22.4]} 14... exf4 {[%clk 0:02:03.4]} 15. Bxa6 {[%clk
0:01:32.6]} 15... Qe7 {[%clk 0:01:32]} 16. Bb7 {[%clk 0:01:26.1]} 16... Qxd6
{[%clk 0:01:01.8]} 17. Rxd6 {[%clk 0:01:27]} 17... Ke7 {[%clk 0:01:02]} 18. Rxc6
{[%clk 0:01:18.2]} 18... Bxc6 {[%clk 0:00:55.7]} 19. Bxc6 {[%clk 0:01:19.1]}
19... Ra6 {[%clk 0:00:54.1]} 20. Bf3 {[%clk 0:01:13.9]} 20... g5 {[%clk
0:00:48.9]} 21. b4 {[%clk 0:01:12]} 21... h5 {[%clk 0:00:39.4]} 22. h3 {[%clk
0:01:10.3]} 22... Ra7 {[%clk 0:00:19.5]} 23. b5 {[%clk 0:01:05.4]} 23... Rc8
{[%clk 0:00:16.5]} 24. b6 {[%clk 0:01:00.2]} 24... Ra3 {[%clk 0:00:10.2]} 25. b7
{[%clk 0:00:51.8]} 25... Rd8 {[%clk 0:00:10.4]} 26. Kb2 {[%clk 0:00:48.4]} 26...
Ra5 {[%clk 0:00:10.5]} 27. Rd1 {[%clk 0:00:45.2]} 27... f5 {[%clk 0:00:08.9]}
28. Rxd8 {[%clk 0:00:44.1]} 28... Kxd8 {[%clk 0:00:08.2]} 29. b8=Q+ {[%clk
0:00:44.1]} 1-0

[Event "Early-Titled-Tuesday-Blitz-May-28-2024"]
[Site "Chess.com"]
[Date "2024.05.28"]
[Round "6"]
[White "VirtualCoach"]
[Black "KorolDimitriy75"]
[Result "0-1"]
[WhiteElo "2187"]
[BlackElo "2365"]
[TimeControl "180+1"]
[EndTime "9:06:26 PDT"]
[Termination "KorolDimitriy75 won on time"]

1. e4 {[%clk 0:03:00.9]} 1... c5 {[%clk 0:03:00.3]} 2. Nf3 {[%clk 0:02:57.1]}
2... d6 {[%clk 0:03:00.6]} 3. d4 {[%clk 0:02:56.4]} 3... cxd4 {[%clk 0:03:01.5]}
4. Nxd4 {[%clk 0:02:57.1]} 4... Nf6 {[%clk 0:03:02.1]} 5. Nc3 {[%clk 0:02:57.6]}
5... g6 {[%clk 0:03:03]} 6. Be3 {[%clk 0:02:53.8]} 6... Bg7 {[%clk 0:03:03.5]}
7. f3 {[%clk 0:02:53.6]} 7... O-O {[%clk 0:03:04.1]} 8. Qd2 {[%clk 0:02:54.1]}
8... Nc6 {[%clk 0:03:05]} 9. g4 {[%clk 0:02:52.2]} 9... Be6 {[%clk 0:03:04.6]}
10. O-O-O {[%clk 0:02:49.5]} 10... Nxd4 {[%clk 0:02:59.4]} 11. Bxd4 {[%clk
0:02:49]} 11... Qa5 {[%clk 0:03:00.1]} 12. a3 {[%clk 0:02:45.1]} 12... Rfc8
{[%clk 0:02:59.2]} 13. h4 {[%clk 0:02:40.5]} 13... Rab8 {[%clk 0:02:58.2]} 14.
h5 {[%clk 0:02:31.3]} 14... b5 {[%clk 0:02:58]} 15. hxg6 {[%clk 0:02:21]} 15...
hxg6 {[%clk 0:02:57.4]} 16. Be2 {[%clk 0:02:14.5]} 16... b4 {[%clk 0:02:47.7]}
17. Nd5 {[%clk 0:01:40.3]} 17... Bxd5 {[%clk 0:02:35]} 18. exd5 {[%clk
0:01:06.9]} 18... Qxd5 {[%clk 0:02:29.3]} 19. Qe3 {[%clk 0:00:53.7]} 19... Qa2
{[%clk 0:01:10.6]} 20. Qxe7 {[%clk 0:00:33.8]} 20... b3 {[%clk 0:01:00.7]} 21.
c4 {[%clk 0:00:24.7]} 21... Re8 {[%clk 0:00:51.4]} 22. Qxd6 {[%clk 0:00:20.2]}
22... Rbd8 {[%clk 0:00:48.6]} 23. Qf4 {[%clk 0:00:02.7]} 23... Rxe2 {[%clk
0:00:42.7]} 0-1

[Event "Early-Titled-Tuesday-Blitz-May-28-2024"]
[Site "Chess.com"]
[Date "2024.05.28"]
[Round "6"]
[White "ThetNaung291"]
[Black "Semetey"]
[Result "0-1"]
[WhiteElo "2349"]
[BlackElo "2538"]
[TimeControl "180+1"]
[EndTime "9:06:30 PDT"]
[Termination "Semetey won by resignation"]

1. d4 {[%clk 0:02:59.9]} 1... Nf6 {[%clk 0:02:59.9]} 2. Nf3 {[%clk 0:02:59.1]}
2... e6 {[%clk 0:02:59.4]} 3. Bg5 {[%clk 0:02:58]} 3... c5 {[%clk 0:02:57.4]} 4.
Bxf6 {[%clk 0:02:52.4]} 4... Qxf6 {[%clk 0:02:56.1]} 5. e3 {[%clk 0:02:52.2]}
5... Nc6 {[%clk 0:02:55.4]} 6. c3 {[%clk 0:02:52]} 6... b6 {[%clk 0:02:54.9]} 7.
Nbd2 {[%clk 0:02:51.5]} 7... Bb7 {[%clk 0:02:55.1]} 8. Be2 {[%clk 0:02:50.9]}
8... d5 {[%clk 0:02:54.1]} 9. O-O {[%clk 0:02:49]} 9... Bd6 {[%clk 0:02:54.1]}
10. a4 {[%clk 0:02:46.2]} 10... O-O {[%clk 0:02:53.2]} 11. Re1 {[%clk
0:02:33.2]} 11... e5 {[%clk 0:02:46.2]} 12. Nxe5 {[%clk 0:02:32]} 12... Nxe5
{[%clk 0:02:47.1]} 13. dxe5 {[%clk 0:02:32]} 13... Bxe5 {[%clk 0:02:47.6]} 14.
Nf1 {[%clk 0:02:29.8]} 14... a6 {[%clk 0:02:45.5]} 15. Bf3 {[%clk 0:02:28.6]}
15... Rad8 {[%clk 0:02:45.2]} 16. Qb3 {[%clk 0:02:27.1]} 16... Rd6 {[%clk
0:02:38.2]} 17. Rad1 {[%clk 0:02:23.7]} 17... Rfd8 {[%clk 0:02:38.7]} 18. Ng3
{[%clk 0:02:20.9]} 18... g6 {[%clk 0:02:37.8]} 19. Rd2 {[%clk 0:02:16.8]} 19...
h5 {[%clk 0:02:33.5]} 20. h3 {[%clk 0:02:09]} 20... h4 {[%clk 0:02:31.1]} 21.
Nf1 {[%clk 0:02:08.8]} 21... c4 {[%clk 0:02:18.2]} 22. Qc2 {[%clk 0:02:03.2]}
22... Bc8 {[%clk 0:02:17.2]} 23. Red1 {[%clk 0:01:52.3]} 23... Bf5 {[%clk
0:02:16.1]} 24. Qc1 {[%clk 0:01:51.9]} 24... Bxh3 {[%clk 0:02:08.3]} 25. Rxd5
{[%clk 0:01:46.1]} 25... Be6 {[%clk 0:01:55.8]} 26. Rxd6 {[%clk 0:01:42.4]}
26... Bxd6 {[%clk 0:01:55.7]} 27. Rd4 {[%clk 0:01:32.5]} 27... h3 {[%clk
0:01:54.9]} 28. Qd1 {[%clk 0:01:30.3]} 28... hxg2 {[%clk 0:01:51.1]} 29. Bxg2
{[%clk 0:01:25.3]} 29... Bc7 {[%clk 0:01:42.9]} 30. Rxd8+ {[%clk 0:01:23.6]}
30... Bxd8 {[%clk 0:01:43.8]} 31. Qd6 {[%clk 0:01:19.6]} 31... Qe7 {[%clk
0:01:42.4]} 32. Qb8 {[%clk 0:01:16.2]} 32... Qc7 {[%clk 0:01:39.9]} 33. Qa8
{[%clk 0:01:15.6]} 33... a5 {[%clk 0:01:38.4]} 34. Ng3 {[%clk 0:01:14.8]} 34...
Kg7 {[%clk 0:01:36.2]} 35. Ne2 {[%clk 0:01:11]} 35... Bd7 {[%clk 0:01:35.7]} 36.
Nd4 {[%clk 0:01:07.8]} 36... Bxa4 {[%clk 0:01:34.9]} 37. Qe4 {[%clk 0:00:54.7]}
37... Bf6 {[%clk 0:01:32]} 38. Qg4 {[%clk 0:00:54.2]} 38... Bd7 {[%clk
0:01:31.2]} 39. Qe4 {[%clk 0:00:47.5]} 39... b5 {[%clk 0:01:30.9]} 40. f4 {[%clk
0:00:43.4]} 40... b4 {[%clk 0:01:30.4]} 41. Kf2 {[%clk 0:00:27.6]} 41... bxc3
{[%clk 0:01:29.7]} 42. bxc3 {[%clk 0:00:27.5]} 42... a4 {[%clk 0:01:30.6]} 43.
Qa8 {[%clk 0:00:26.3]} 43... Bxd4 {[%clk 0:01:25.8]} 44. cxd4 {[%clk 0:00:25.3]}
44... c3 {[%clk 0:01:26]} 45. Be4 {[%clk 0:00:19.8]} 45... c2 {[%clk 0:01:26.2]}
0-1

[Event "Early-Titled-Tuesday-Blitz-May-28-2024"]
[Site "Chess.com"]
[Date "2024.05.28"]
[Round "6"]
[White "KogotBobra17"]
[Black "LLariMarc"]
[Result "0-1"]
[WhiteElo "2642"]
[BlackElo "2516"]
[TimeControl "180+1"]
[EndTime "9:06:36 PDT"]
[Termination "LLariMarc won by resignation"]

1. f4 {[%clk 0:03:00.9]} 1... d5 {[%clk 0:02:56.3]} 2. Nf3 {[%clk 0:03:00.9]}
2... Nf6 {[%clk 0:02:53.3]} 3. g3 {[%clk 0:03:00.8]} 3... g6 {[%clk 0:02:52.4]}
4. Bg2 {[%clk 0:03:00.8]} 4... Bg7 {[%clk 0:02:53.3]} 5. O-O {[%clk 0:03:00.8]}
5... O-O {[%clk 0:02:54.2]} 6. d3 {[%clk 0:03:01.2]} 6... c5 {[%clk 0:02:52.4]}
7. Nc3 {[%clk 0:03:01.7]} 7... d4 {[%clk 0:02:50.1]} 8. Ne4 {[%clk 0:03:02.3]}
8... Nd5 {[%clk 0:02:32.2]} 9. Nxc5 {[%clk 0:02:56.6]} 9... Nc6 {[%clk
0:02:27.5]} 10. Bd2 {[%clk 0:02:53]} 10... Qb6 {[%clk 0:02:23.2]} 11. Nb3 {[%clk
0:02:52.6]} 11... a5 {[%clk 0:02:17.8]} 12. Rb1 {[%clk 0:02:31.6]} 12... a4
{[%clk 0:02:15.7]} 13. Nc1 {[%clk 0:02:32.2]} 13... a3 {[%clk 0:02:13.9]} 14. b3
{[%clk 0:02:26.6]} 14... Rd8 {[%clk 0:02:08.1]} 15. Kh1 {[%clk 0:02:26.7]} 15...
Ncb4 {[%clk 0:02:06.8]} 16. Ne5 {[%clk 0:02:22.3]} 16... Be6 {[%clk 0:01:57.9]}
17. Nc4 {[%clk 0:02:22.4]} 17... Qc5 {[%clk 0:01:57.7]} 18. e4 {[%clk 0:01:28]}
18... dxe3 {[%clk 0:01:55.1]} 19. Be1 {[%clk 0:01:28.7]} 19... b5 {[%clk
0:01:51.3]} 20. Ne5 {[%clk 0:01:00.5]} 20... Qxc2 {[%clk 0:01:41.2]} 21. Qxc2
{[%clk 0:01:00.6]} 21... Nxc2 {[%clk 0:01:41.9]} 22. Ne2 {[%clk 0:01:01.5]}
22... Nxe1 {[%clk 0:01:33.5]} 23. Rfxe1 {[%clk 0:01:00.6]} 23... Rac8 {[%clk
0:01:32.2]} 24. Nd4 {[%clk 0:01:00]} 24... Nc3 {[%clk 0:01:14]} 25. Nxe6 {[%clk
0:00:54.1]} 25... fxe6 {[%clk 0:01:14.2]} 26. Rbc1 {[%clk 0:00:22.6]} 26... Bxe5
{[%clk 0:01:08.7]} 27. fxe5 {[%clk 0:00:23.5]} 27... Nxa2 {[%clk 0:01:06]} 28.
Ra1 {[%clk 0:00:20.6]} 28... Nb4 {[%clk 0:01:04]} 29. Rxa3 {[%clk 0:00:17.8]}
29... Nc2 {[%clk 0:01:03.8]} 30. Raa1 {[%clk 0:00:18.7]} 30... Nxa1 {[%clk
0:01:02.6]} 31. Rxa1 {[%clk 0:00:19.6]} 31... Rxd3 {[%clk 0:01:01.3]} 32. Bh3
{[%clk 0:00:20.4]} 32... Rc2 {[%clk 0:00:57.6]} 33. Bxe6+ {[%clk 0:00:19.3]}
33... Kg7 {[%clk 0:00:57.8]} 34. Re1 {[%clk 0:00:18.5]} 34... e2 {[%clk
0:00:57.1]} 35. Kg1 {[%clk 0:00:17]} 35... Rd1 {[%clk 0:00:56.3]} 36. Kf2 {[%clk
0:00:17.6]} 36... Rxe1 {[%clk 0:00:56.7]} 37. Kxe1 {[%clk 0:00:18.5]} 37... b4
{[%clk 0:00:50.5]} 38. Bc4 {[%clk 0:00:18.4]} 38... Rxc4 {[%clk 0:00:47.4]} 39.
bxc4 {[%clk 0:00:19.3]} 39... b3 {[%clk 0:00:48]} 40. Kxe2 {[%clk 0:00:19.8]}
40... b2 {[%clk 0:00:48.6]} 0-1

[Event "Early-Titled-Tuesday-Blitz-May-28-2024"]
[Site "Chess.com"]
[Date "2024.05.28"]
[Round "6"]
[White "CrushingKings"]
[Black "Smiechu"]
[Result "0-1"]
[WhiteElo "2582"]
[BlackElo "2439"]
[TimeControl "180+1"]
[EndTime "9:06:40 PDT"]
[Termination "Smiechu won by resignation"]

1. Nf3 {[%clk 0:02:45.5]} 1... d5 {[%clk 0:02:58.7]} 2. g3 {[%clk 0:02:45.2]}
2... Nf6 {[%clk 0:02:58.1]} 3. Bg2 {[%clk 0:02:45.5]} 3... e6 {[%clk 0:02:58.3]}
4. O-O {[%clk 0:02:45.4]} 4... Bd6 {[%clk 0:02:58.4]} 5. c4 {[%clk 0:02:45.7]}
5... c6 {[%clk 0:02:58.4]} 6. b3 {[%clk 0:02:45.9]} 6... O-O {[%clk 0:02:58.2]}
7. Bb2 {[%clk 0:02:46.5]} 7... Re8 {[%clk 0:02:57.7]} 8. d4 {[%clk 0:02:40.9]}
8... Nbd7 {[%clk 0:02:57.3]} 9. Nbd2 {[%clk 0:02:41.2]} 9... Qe7 {[%clk
0:02:48.4]} 10. Qc2 {[%clk 0:02:20.6]} 10... Ba3 {[%clk 0:02:41.6]} 11. Bxa3
{[%clk 0:02:17.1]} 11... Qxa3 {[%clk 0:02:41.5]} 12. e4 {[%clk 0:02:17.8]} 12...
dxe4 {[%clk 0:02:38]} 13. Nxe4 {[%clk 0:02:16.8]} 13... Nxe4 {[%clk 0:02:37.8]}
14. Qxe4 {[%clk 0:02:17.7]} 14... Nf6 {[%clk 0:02:37.4]} 15. Qe3 {[%clk
0:02:04.4]} 15... a5 {[%clk 0:02:25.7]} 16. Ne5 {[%clk 0:01:14.7]} 16... a4
{[%clk 0:02:20.5]} 17. Qc3 {[%clk 0:01:14.6]} 17... Nd7 {[%clk 0:02:13.2]} 18.
Nd3 {[%clk 0:00:52.4]} 18... Qe7 {[%clk 0:02:04.1]} 19. b4 {[%clk 0:00:50.6]}
19... Qf6 {[%clk 0:02:03.6]} 20. Ne5 {[%clk 0:00:50.1]} 20... Nxe5 {[%clk
0:02:00.4]} 21. dxe5 {[%clk 0:00:50.2]} 21... Qe7 {[%clk 0:01:58.6]} 22. Rad1
{[%clk 0:00:44.6]} 22... Bd7 {[%clk 0:01:54.6]} 23. Rd6 {[%clk 0:00:40.6]} 23...
Red8 {[%clk 0:01:46.4]} 24. Rfd1 {[%clk 0:00:39]} 24... Be8 {[%clk 0:01:46.1]}
25. h4 {[%clk 0:00:23.8]} 25... Rxd6 {[%clk 0:01:27.2]} 26. exd6 {[%clk
0:00:24]} 26... Qd7 {[%clk 0:01:27.3]} 27. c5 {[%clk 0:00:17.5]} 27... f6 {[%clk
0:01:26.7]} 28. Bh3 {[%clk 0:00:14.5]} 28... Bf7 {[%clk 0:01:24]} 29. Re1 {[%clk
0:00:13]} 29... Re8 {[%clk 0:01:23.2]} 30. Qc4 {[%clk 0:00:12.4]} 30... Qd8
{[%clk 0:01:16.8]} 31. Qc2 {[%clk 0:00:09.6]} 31... e5 {[%clk 0:01:15]} 32. Qxa4
{[%clk 0:00:09.5]} 32... g6 {[%clk 0:01:05.5]} 33. Bf1 {[%clk 0:00:06.9]} 33...
e4 {[%clk 0:00:59.7]} 34. Qc2 {[%clk 0:00:05.7]} 34... f5 {[%clk 0:00:57.8]} 35.
Bc4 {[%clk 0:00:06.2]} 35... Qd7 {[%clk 0:00:52.7]} 36. Qb2 {[%clk 0:00:06.3]}
36... Bxc4 {[%clk 0:00:46.8]} 0-1

[Event "Early-Titled-Tuesday-Blitz-May-28-2024"]
[Site "Chess.com"]
[Date "2024.05.28"]
[Round "6"]
[White "karinachess1"]
[Black "LileKoridze"]
[Result "1-0"]
[WhiteElo "2608"]
[BlackElo "2435"]
[TimeControl "180+1"]
[EndTime "9:06:42 PDT"]
[Termination "karinachess1 won by resignation"]

1. d4 {[%clk 0:03:00.9]} 1... Nf6 {[%clk 0:02:56.7]} 2. c4 {[%clk 0:03:01]} 2...
e6 {[%clk 0:02:48.8]} 3. Nc3 {[%clk 0:03:01]} 3... Bb4 {[%clk 0:02:48.5]} 4. a3
{[%clk 0:03:01.4]} 4... Bxc3+ {[%clk 0:02:48.1]} 5. bxc3 {[%clk 0:03:02.3]} 5...
b6 {[%clk 0:02:47]} 6. f3 {[%clk 0:03:02.4]} 6... Bb7 {[%clk 0:02:47.4]} 7. e4
{[%clk 0:03:02.8]} 7... d6 {[%clk 0:02:47.6]} 8. Bg5 {[%clk 0:02:59]} 8... Nbd7
{[%clk 0:02:47.2]} 9. Bd3 {[%clk 0:02:58.8]} 9... O-O {[%clk 0:02:46.7]} 10. Ne2
{[%clk 0:02:57.4]} 10... e5 {[%clk 0:02:46.7]} 11. O-O {[%clk 0:02:55.8]} 11...
h6 {[%clk 0:02:45.9]} 12. Bh4 {[%clk 0:02:56.2]} 12... c6 {[%clk 0:02:45.8]} 13.
Qd2 {[%clk 0:02:45.5]} 13... d5 {[%clk 0:02:25.8]} 14. f4 {[%clk 0:02:04.2]}
14... dxe4 {[%clk 0:02:19.9]} 15. Bc2 {[%clk 0:01:50.9]} 15... exf4 {[%clk
0:02:13.8]} 16. Qxf4 {[%clk 0:01:47]} 16... Qe7 {[%clk 0:01:45.5]} 17. Ng3
{[%clk 0:01:42.4]} 17... Qe6 {[%clk 0:01:39.3]} 18. Nxe4 {[%clk 0:01:31.1]}
18... Nh7 {[%clk 0:01:07.6]} 19. Nd6 {[%clk 0:01:06.7]} 19... g5 {[%clk
0:00:47.3]} 20. Qf5 {[%clk 0:00:58.2]} 20... Qxf5 {[%clk 0:00:45.1]} 21. Bxf5
{[%clk 0:00:59.1]} 21... gxh4 {[%clk 0:00:43.9]} 22. Nxb7 {[%clk 0:00:58.5]}
22... Ndf6 {[%clk 0:00:42.1]} 23. Nd6 {[%clk 0:00:52.4]} 23... Rad8 {[%clk
0:00:41.6]} 24. c5 {[%clk 0:00:52.6]} 24... bxc5 {[%clk 0:00:40.7]} 25. dxc5
{[%clk 0:00:53.5]} 25... Nd5 {[%clk 0:00:41]} 26. Rae1 {[%clk 0:00:43.7]} 26...
Ng5 {[%clk 0:00:38.7]} 27. c4 {[%clk 0:00:39]} 27... Nf6 {[%clk 0:00:35.6]} 28.
Re7 {[%clk 0:00:37.4]} 28... a5 {[%clk 0:00:31.9]} 29. Rb1 {[%clk 0:00:36.7]}
29... Rb8 {[%clk 0:00:30.1]} 30. Rbb7 {[%clk 0:00:32.1]} 30... Rxb7 {[%clk
0:00:24.6]} 31. Rxb7 {[%clk 0:00:33]} 31... Ra8 {[%clk 0:00:21.8]} 32. Rb6
{[%clk 0:00:32.3]} 32... Nd7 {[%clk 0:00:19.4]} 33. Bxd7 {[%clk 0:00:30.8]}
33... Rd8 {[%clk 0:00:17.4]} 34. Bxc6 {[%clk 0:00:28.4]} 1-0